Cogmind - Beta 10.2 @@@ ROGUE MODE // 2021.07.27 @ 11:00:32 Player: youngster Result: Self-destructed Performance ------------- Evolutions (3) 1500 Regions Visited (6) 1200 Robots Destroyed (25) 125 Value Destroyed (749) 749 Prototype IDs (42) 840 Alien Tech Used (0) 0 Bonus (300) 300 TOTAL SCORE: 4714 Bonus ------- Aligned with FarCom 300 Cogmind --------- Core Integrity 700/700 Matter 245/300 Energy 250/250 System Corruption 0% Temperature Cool (0) Movement Walking (107) Location -7/Factory Parts ------- > --- POWER (1) -------- Ion Engine > --- PROPULSION (4) --- Carbon-fiber Leg Improved Titanium Leg Potential Leg Potential Leg > --- UTILITY (5) ------ High-capacity Storage Unit Visual Processing Unit Advanced Visual Processing Unit Hacking Suite Hacking Suite > --- WEAPON (3) ------- Gauss Rifle Heavy Hammer Heavy Flail > --- INVENTORY (12) --- Carbon-fiber Leg Carbon-fiber Leg Carbon-fiber Leg High-capacity Storage Unit Compact Matter Pod (150) Weight Redist. System Advanced Signal Interpreter Terrain Scanner Autogun Grenade Launcher Missile Launcher Peak State ------------ > --- POWER ------------ Ion Engine > --- PROPULSION ------- Carbon-fiber Leg Improved Titanium Leg Potential Leg Potential Leg > --- UTILITY ---------- High-capacity Storage Unit Visual Processing Unit Advanced Visual Processing Unit Hacking Suite Hacking Suite > --- WEAPON ----------- Gauss Rifle Heavy Hammer Heavy Flail > --- INVENTORY -------- Carbon-fiber Leg Carbon-fiber Leg Carbon-fiber Leg High-capacity Storage Unit Compact Matter Pod Weight Redist. System Advanced Signal Interpreter Terrain Scanner Autogun Grenade Launcher Missile Launcher [Rating: 51] Favorites ----------- Power Ion Engine Engine Ion Engine Power Core Nuclear Core Propulsion Light Treads Treads Light Treads Leg Potential Leg Utility High-capacity Storage Unit Device Sensor Array Storage High-capacity Storage Unit Processor Visual Processing Unit Hackware Hacking Suite Weapon Light Assault Rifle Energy Gun Medium Laser Ballistic Gun Light Assault Rifle Ballistic Cannon Improved Light Cannon Impact Weapon Heavy Flail Special Melee Weapon Datajack Build | -11 -10 -10 -10 -9 -8 -7 ------- Run | Scr Mat Min Exi Min Mat Fac Slots Evolved 6 | . . . . . 4 2 Power . | . . . . . . . Propulsion 2 | . . . . . . 2 Utility 3 | . . . . . 3 . Weapon 1 | . . . . . 1 . Parts Attached 44 | 6 12 1 4 . 18 3 Power 6 | 1 3 . . . 2 . Engine 5 | 1 3 . . . 1 . Core 1 | . . . . . 1 . Reactor . | . . . . . . . Propulsion 10 | 2 2 . 3 . . 3 Treads 5 | 2 2 . 1 . . . Leg 5 | . . . 2 . . 3 Wheel . | . . . . . . . Hover . | . . . . . . . Flight . | . . . . . . . Utility 13 | 1 5 . 1 . 6 . Device 4 | . 1 . . . 3 . Storage 5 | 1 4 . . . . . Processor 2 | . . . 1 . 1 . Hackware 2 | . . . . . 2 . Protection . | . . . . . . . Artifact . | . . . . . . . Weapon 15 | 2 2 1 . . 10 . Energy Gun 2 | 1 1 . . . . . Energy Cannon . | . . . . . . . Ballistic Gun 6 | 1 1 . . . 4 . Ballistic Cannon 2 | . . . . . 2 . Launcher . | . . . . . . . Special Weapon . | . . . . . . . Impact Weapon 2 | . . . . . 2 . Slashing Weapon . | . . . . . . . Piercing Weapon . | . . . . . . . Special Melee Weapon 3 | . . 1 . . 2 . Unidentified Prototypes . | . . . . . . . Parts Lost 11 | . 1 . . . 10 . Power 3 | . 1 . . . 2 . Propulsion . | . . . . . . . Utility 2 | . . . . . 2 . Weapon 6 | . . . . . 6 . Highest Loss Streak 4 | . 1 . . . 4 . Average Slot Usage (%) 97 | . 99 100 99 100 90 100 Engine 12 | . 13 14 14 14 6 7 Treads 18 | . 27 28 18 . . . Leg 6 | . . . 9 28 18 30 Device 2 | . . . . . 9 . Storage 22 | . 27 28 25 14 9 7 Processor 3 | . . . 2 14 11 15 Hackware 2 | . . . . . 9 15 Ballistic Gun 20 | . 26 17 14 14 11 7 Impact Weapon 1 | . . . . . 4 15 Special Melee Weapon 4 | . . 10 14 14 4 . Naked Turns . | . . . . . . . Heaviest Build 73 | 13 73 72 71 39 49 47 Greatest Support 95 | 40 40 40 60 60 66 95 Greatest Overweight (x) 3 | 1 3 1 3 . . . Average Overweight (x) . | . . 1 . . . . Largest Inventory Capacity 20 | 6 20 20 20 12 12 12 Average Capacity 17 | 5 19 20 18 12 12 12 Most Carried 20 | 2 19 20 20 12 12 11 Average Carried 13 | 1 13 19 18 12 10 10 Final Capacity 20 | 6 20 20 12 12 12 12 Final Carried 20 | 2 19 20 12 12 12 11 Class Distribution -------------------- 66% | Hauler-Mutant 13% | Mutant 11% | Scavenger-Assassin 3% | Scavenger-Mutant Dominant Class ---------------- Hauler-Mutant | -10/Materials Hauler-Mutant | -10/Mines Hauler-Mutant | -10/Exiles Mutant | -9/Mines Scavenger-Assassin | -8/Materials Hacker-Mutant | -7/Factory Resources | -11 -10 -10 -10 -9 -8 -7 ----------- Run | Scr Mat Min Exi Min Mat Fac Matter Collected 1008 | 234 481 . . . 293 . Remotely . | . . . . . . . Salvage Created 1022 | . 518 . . . 504 . Parts 58 | . 38 . . . 20 . Haulers Intercepted 3 | . 2 . . . 1 . Recyclers Shooed 2 | . . 2 . . . . Parts Field Recycled . | . . . . . . . Retrieved Matter . | . . . . . . . Parts Self-Destructed . | . . . . . . . Prevented . | . . . . . . . Kills | -11 -10 -10 -10 -9 -8 -7 ------- Run | Scr Mat Min Exi Min Mat Fac Combat Hostiles Destroyed 19 | . 11 . . . 8 . Melee 2 | . . . . . 2 . Guns 15 | . 11 . . . 4 . Cannons 2 | . . . . . 2 . Classes Destroyed 8 | . 5 . . . 3 . Hauler 3 | . 2 . . . 1 . Recycler 1 | . . . . . 1 . Operator 1 | . 1 . . . . . Watcher 1 | . 1 . . . . . Swarmer 3 | . 3 . . . . . Grunt 13 | . 8 . . . 5 . Sentry 1 | . . . . . 1 . Hunter 2 | . . . . . 2 . Best Kill Streak 5 | . 5 . . . 4 . Combat Bots Only 5 | . 5 . . . 4 . Max Kills in Single Turn 1 | . 1 . . . 1 . Gunslinging . | . . . . . . . Exploded . | . . . . . . . Melee 1 | . . . . . 1 . Uniques/NPCs Destroyed . | . . . . . . . Combat | -11 -10 -10 -10 -9 -8 -7 -------- Run | Scr Mat Min Exi Min Mat Fac Damage Taken 2401 | . 590 . . . 1811 . Core 436 | . 53 . . . 383 . Absorbed by Shields . | . . . . . . . Core Remaining (%) 69 | 100 . . . 78 30 . Volleys Fired 82 | . 55 . . . 27 . Largest 3 | . 2 . . . 3 . Hottest 79 | . 70 . . . 79 . Shots Fired 172 | . 110 . . . 62 . Gun 159 | . 110 . . . 49 . Cannon 13 | . . . . . 13 . Launcher . | . . . . . . . Special . | . . . . . . . Kinetic 157 | . 95 . . . 62 . Thermal 15 | . 15 . . . . . Explosive . | . . . . . . . Electromagnetic . | . . . . . . . Robot Hit Streak 12 | . 9 . . . 12 . Robot Miss Streak 3 | . 3 . . . 2 . Penetration Max 1 | . . . . . 1 . Secondary Targets . | . . . . . . . Shots Hit Robots 149 | . 72 1 5 . 71 . Core Hits 50 | . 29 1 . . 20 . Critical Hits 1 | . 1 . . . . . Critical Kills . | . . . . . . . Critical Parts Destroyed 1 | . 1 . . . . . Melee Attacks 38 | . . 1 5 . 32 . Impact 19 | . . . . . 19 . Slashing . | . . . . . . . Piercing . | . . . . . . . Sneak Attacks 14 | . . 1 5 . 8 . Combat Hostiles . | . . . . . . . Follow-up Attacks 2 | . . . . . 2 . Damage Inflicted 2036 | 6 877 28 . . 1125 . Guns 1174 | . 770 . . . 404 . Cannons 144 | . . . . . 144 . Explosions . | . . . . . . . Melee 543 | . . . . . 543 . Ramming 175 | 6 107 28 . . 34 . Kinetic 1180 | . 632 . . . 548 . Thermal 138 | . 138 . . . . . Explosive . | . . . . . . . Electromagnetic . | . . . . . . . Impact 543 | . . . . . 543 . Slashing . | . . . . . . . Piercing . | . . . . . . . Highest Corruption 2 | . 2 2 2 2 . . Average Corruption 2 | . 2 2 2 2 . . Corruption Purged . | . . . . . . . Effects 6 | . 1 3 2 . . . Message Errors 4 | . 1 2 1 . . . Heat Flow Errors 1 | . . . 1 . . . Data Loss (minor) 1 | . . 1 . . . . Overload Shots . | . . . . . . . Overflow Damage 50 | . . . . . 50 . Projectiles . | . . . . . . . Explosions . | . . . . . . . Melee 50 | . . . . . 50 . Knockbacks 4 | . . . . . 4 . Impact 2 | . . . . . 2 . Kinetic 2 | . . . . . 2 . Secondary . | . . . . . . . Self-Inflicted Damage 16 | . . . . . 16 . Shots . | . . . . . . . Rammed 18 | 2 10 3 . . 3 . Targets Rammed 18 | 2 10 3 . . 3 . Kicked . | . . . . . . . Crushed . | . . . . . . . Highest Temperature 180 | . 180 . 126 . 115 . Average Temperature 58 | . 68 . 69 . 39 . Received Heat Transfer 762 | . 285 . . . 477 . Siege Activations . | . . . . . . . Robots Corrupted . | . . . . . . . Combat Hostiles . | . . . . . . . Parts Fried . | . . . . . . . Impact Corruptions 3 | . . . . . 3 . Robots Melted . | . . . . . . . Combat Hostiles . | . . . . . . . Parts Melted . | . . . . . . . Heat Transferred 395 | . 395 . . . . . Parts Sabotaged . | . . . . . . . Parts Stolen . | . . . . . . . Parts Stripped . | . . . . . . . Power Chain Reactions . | . . . . . . . Missiles Intercepted . | . . . . . . . Alert | -11 -10 -10 -10 -9 -8 -7 ------- Run | Scr Mat Min Exi Min Mat Fac Peak Influence 230 | . 177 19 . . 230 104 Initial 104 | . . 19 . . . 104 Average 76 | . 88 19 . . 91 104 Maximum Alert Level 1 | . . . . . 1 . Low Security (%) 96 | 100 100 100 . 100 85 100 Level 1 3 | . . . . . 14 . Level 2 . | . . . . . . . Level 3 . | . . . . . . . Level 4 . | . . . . . . . Level 5 . | . . . . . . . High Security . | . . . . . . . Max Security . | . . . . . . . Squads Dispatched 8 | . 3 . . . 5 . Investigation 5 | . 2 . . . 3 . Extermination . | . . . . . . . Reinforcement 3 | . 1 . . . 2 . Assault . | . . . . . . . Garrison . | . . . . . . . Intercept . | . . . . . . . Construction Impeded . | . . . . . . . Haulers Reinforced . | . . . . . . . Stealth | -11 -10 -10 -10 -9 -8 -7 --------- Run | Scr Mat Min Exi Min Mat Fac Distress Signals 2 | . 1 . . . 1 . Communications Jammed . | . . . . . . . Distress Signals . | . . . . . . . Times Spotted 57 | . 24 . . . 33 . Peak Tracking Total 12 | . 6 . . . 12 . Tactical Retreats 9 | . 2 . . . 7 . Traps | -11 -10 -10 -10 -9 -8 -7 ------- Run | Scr Mat Min Exi Min Mat Fac Traps Triggered 1 | . 1 . . . . . Indirectly . | . . . . . . . Trap Hack Attempts . | . . . . . . . Triggered . | . . . . . . . Disarmed . | . . . . . . . Reprogrammed . | . . . . . . . Reused . | . . . . . . . Traps Extracted . | . . . . . . . Installed . | . . . . . . . Triggered 1 | . . 1 . . . . Exploded 1 | . . . . . 1 . Machines | -11 -10 -10 -10 -9 -8 -7 ---------- Run | Scr Mat Min Exi Min Mat Fac Machines Disabled . | . . . . . . . Max in Single Turn . | . . . . . . . Machines Sabotaged . | . . . . . . . Garrisons Compromised . | . . . . . . . Overloaded Fab Kills . | . . . . . . . Fab Network Shutdowns . | . . . . . . . Hacking | -11 -10 -10 -10 -9 -8 -7 --------- Run | Scr Mat Min Exi Min Mat Fac Machines Accessed 20 | . 10 . 2 . 8 . Terminals 13 | . 7 . . . 6 . Fabricators . | . . . . . . . Repair Stations 1 | . 1 . . . . . Recycling Units 3 | . 2 . . . 1 . Scanalyzers 1 | . . . . . 1 . Garrison Access . | . . . . . . . Total Hacks 68 | . 24 . 24 . 20 . Successful 57 | . 16 . 24 . 17 . Failed 11 | . 8 . . . 3 . Catastrophic 1 | . 1 . . . . . Database Lockouts . | . . . . . . . Manual 10 | . 3 . 1 . 6 . Terminals 30 | . 17 . . . 13 . Fabricators . | . . . . . . . Repair Stations 5 | . 5 . . . . . Recycling Units 3 | . 2 . . . 1 . Scanalyzers 6 | . . . . . 6 . Garrison Access . | . . . . . . . Terminal Hacks 39 | . 10 . 24 . 5 . Record 23 | . . . 23 . . . Robot Analysis 2 | . 1 . . . 1 . Prototype ID Bank 2 | . . . . . 2 . Alert Level 1 | . 1 . . . . . Locate Traps 4 | . 4 . . . . . Surveillance Status 1 | . . . . . 1 . Hauler Manifests 2 | . 2 . . . . . Registered Components 1 | . 1 . . . . . Zone Layout 2 | . 1 . . . 1 . EX-Prototype ID Bank 1 | . . . 1 . . . Fabricator Hacks . | . . . . . . . Repair Station Hacks 3 | . 3 . . . . . Scan Component 2 | . 2 . . . . . Repair 1 | . 1 . . . . . Recycling Unit Hacks . | . . . . . . . Scanalyzer 6 | . . . . . 6 . Insert Component 3 | . . . . . 3 . Analyze 3 | . . . . . 3 . Garrison Access Hacks . | . . . . . . . Unauthorized Hacks 9 | . 3 . . . 6 . Terminals 6 | . 1 . . . 5 . Track 1 | . . . . . 1 . Assimilate 4 | . 1 . . . 3 . Botnet 1 | . . . . . 1 . Fabricators . | . . . . . . . Repair Stations . | . . . . . . . Recycling Units 3 | . 2 . . . 1 . Tunnel 3 | . 2 . . . 1 . Scanalyzers . | . . . . . . . Garrison Access . | . . . . . . . Data Cores Recovered . | . . . . . . . Used . | . . . . . . . Hacking Detections 11 | . 6 . . . 5 . Full Trace Events 4 | . 1 . . . 3 . Feedback Events . | . . . . . . . Feedback Blocked . | . . . . . . . Robot Schematics Acquired . | . . . . . . . Robots Built . | . . . . . . . Matter . | . . . . . . . Time . | . . . . . . . Total Robot Build Rating . | . . . . . . . Part Schematics Acquired 2 | . . . . . 2 . Parts Built . | . . . . . . . Matter . | . . . . . . . Time . | . . . . . . . Total Part Build Rating . | . . . . . . . Parts Repaired 1 | . 1 . . . . . Time 26 | . 26 . . . . . Parts Recycled . | . . . . . . . Recycled Matter . | . . . . . . . Retrieved Matter . | . . . . . . . Retrieved Components . | . . . . . . . Parts Scanalyzed 3 | . . . . . 3 . Part Schematics Acquired 2 | . . . . . 2 . Parts Damaged . | . . . . . . . Bothacking | -11 -10 -10 -10 -9 -8 -7 ------------ Run | Scr Mat Min Exi Min Mat Fac Used RIF Installer . | . . . . . . . Robots Hacked 12 | . . 1 4 . 7 . Non-combat 7 | . . . 3 . 4 . Combat 5 | . . 1 1 . 3 . Robot Hacks Applied 16 | . . 1 4 . 11 . parse_system 9 | . . 1 4 . 4 . no_distress 4 | . . . . . 4 . find_recycling 1 | . . . . . 1 . check_alert 2 | . . . . . 2 . Relay Couplers Released . | . . . . . . . Robots Rewired . | . . . . . . . Allies Hacked . | . . . . . . . Hacks Repelled . | . . . . . . . Allies | -11 -10 -10 -10 -9 -8 -7 -------- Run | Scr Mat Min Exi Min Mat Fac Total Allies 2 | . . . . . 2 . Largest Group 1 | . . . . . 1 . Highest-Rated Group 10 | . . . . . 10 . Highest-Rated Ally 10 | . . . . . 10 . Total Orders . | . . . . . . . Ally Attacks . | . . . . . . . Total Damage . | . . . . . . . Kills . | . . . . . . . Allies Corrupted . | . . . . . . . Allies Melted . | . . . . . . . Intel | -11 -10 -10 -10 -9 -8 -7 ------- Run | Scr Mat Min Exi Min Mat Fac Robot Analysis Total 2 | . 1 . . . 1 . Derelict Logs Recovered 1 | . . 1 . . . . Drone Launches . | . . . . . . . Drone Recoveries . | . . . . . . . Exploration | -11 -10 -10 -10 -9 -8 -7 ------------- Run | Scr Mat Min Exi Min Mat Fac Turns Passed 2740 | 67 1391 180 376 125 558 43 Spaces Moved 1690 | 35 639 93 252 128 506 37 Core 2 | 2 . . . . . . Treads 895 | 33 639 93 130 . . . Legs 793 | . . . 122 128 506 37 Wheels . | . . . . . . . Hover . | . . . . . . . Flight . | . . . . . . . Fastest Speed 45 | 50 160 180 45 45 45 105 Average Speed 131 | 155 179 180 140 88 69 106 Slowest Speed 220 | 160 220 180 220 90 90 107 Overloaded Moves 238 | . . . 8 5 225 . Propulsion Burnouts . | . . . . . . . Robots Hopped . | . . . . . . . Cave-ins Triggered . | . . . . . . . Exploration Rate (%) 39 | 3 94 42 66 22 48 3 Regions Visited 6 Branch Regions 3 Pre-discovered Areas 6 | . 2 1 1 1 1 . Known Exits Taken . | . . . . . . . Unknown Exits Taken 6 | 1 1 1 1 1 1 . Scrap Searched 1 | . . 1 . . . . Spaces Dug 2 | . . . . . 2 . Terrain Destroyed 2 | . . . . . 2 . Melee 2 | . . . . . 2 . Projectile . | . . . . . . . AOE . | . . . . . . . Terrain Rammed . | . . . . . . . Walls Destroyed . | . . . . . . . Machines Disabled . | . . . . . . . Actions | -11 -10 -10 -10 -9 -8 -7 --------- Run | Scr Mat Min Exi Min Mat Fac Total 1981 | 44 769 103 274 139 612 40 Wait 67 | . 36 3 . 12 16 . Move 1684 | 34 638 92 251 127 505 37 Hop . | . . . . . . . Pick Up 25 | 2 13 2 1 . 7 . Fast Attach 26 | 6 6 . 4 . 10 . Attach 10 | . 1 . . . 7 2 Detach 5 | . 2 . . . 3 . Swap 8 | . 5 1 . . 1 1 Drop 20 | . 3 1 13 . 3 . Fire 82 | . 55 . . . 27 . Melee 36 | . . 1 5 . 30 . Ram . | . . . . . . . Kick 3 | . . . . . 3 . Crush 15 | 2 10 3 . . . . Escape Stasis . | . . . . . . . Rewire . | . . . . . . . Trap . | . . . . . . . Miscellaneous . | . . . . . . . Route ------- -11/Scrapyard -10/Materials (discovered 5 exits: [*Mat x3] / [*Min x2]) -10/Mines (discovered 2 exits: [*Mat] / *Exi) -10/Exiles -9/Mines -8/Materials -7/Factory History --------- Turn | Location | Event 20 | -11/Scrapyard | Discovered new exit (range 16) 68 | -11/Scrapyard | Entered Materials 408 | -10/Materials | Build established: Hauler-Mutant 478 | -10/Materials | Discovered new exit (range 6) 801 | -10/Materials | Repaired Lgt. Treads 822 | -10/Materials | Discovered new exit (range 14) 943 | -10/Materials | Discovered new exit (range 14) 1062 | -10/Materials | Discovered new exit (range 8) 1203 | -10/Materials | Discovered new exit (range 18) 1459 | -10/Materials | Entered Mines 1517 | -10/Mines | YI-UF0 nonchalantly dropped a Grenade Launcher on the ground 1575 | -10/Mines | Discovered new exit (range 15) 1632 | -10/Mines | Deemed a non-threat by the Exiles lab entrance 1632 | -10/Mines | Discovered new exit (range 5) 1639 | -10/Mines | Entered Exiles 1686 | -10/Exiles | Met 8R-AWN 1724 | -10/Exiles | Met EX-HEX 1802 | -10/Exiles | Met EX-BIN 1825 | -10/Exiles | Aligned with FarCom system 1827 | -10/Exiles | Given EX-Vault access code 1869 | -10/Exiles | Opened EX-Vault 1887 | -10/Exiles | Found Potential Leg 1891 | -10/Exiles | Found Potential Leg 1921 | -10/Exiles | Warned to stay clear of 0b10 Research branches 1949 | -10/Exiles | Met EX-DEC 1955 | -10/Exiles | Learned location of Zion (-7) 2008 | -10/Exiles | Discovered new exit (range 10) 2015 | -10/Exiles | Left Exiles lab with Potential Leg 2015 | -10/Exiles | Entered Mines 2051 | -9/Mines | Learned location of Storage (-7) 2057 | -9/Mines | Discovered new exit (range 7) 2140 | -9/Mines | Entered Materials 2140 | -8/Materials | Evolved 4 slots: Utility x3, Weapon x1 2550 | -8/Materials | Lost 4 parts (2u2w) 2564 | -8/Materials | Core integrity fell below 50% 2668 | -8/Materials | Discovered new exit (range 10) 2698 | -8/Materials | Entered Factory 2698 | -7/Factory | Evolved 2 slots: Propulsion x2 2741 | -7/Factory | Self-destructed Last Messages --------------- Downloaded coordinate data. 02668_ ALERT: Suspicious activity at Terminal M006. Dispatching Investigation squad. 02676_ Slug penetrates Wall. 02678_ Slug penetrates Door. 02681_ Penetrated by Slug. 02683_ Hvy. Flail follow-up attack on H-55 Commando. 02686_ Slug penetrates Wall. 02686_ Destroyed Targeting Computer. 02686_ H-55 Commando system corrupted by crushing effect. 02686_ Hvy. Flail follow-up attack on H-55 Commando. 02686_ H-55 Commando knocked back. 02687_ Penetrated by Slug. 02690_ Slug penetrates Wall. 02696_ Penetrated by Slug. PARAMETERS=PROPULSION_2 LOCATION=UNKNOWN GOAL=ESCAPE 02698_ Receiving FarCom transmissions... 02728_ K-01 Serf collects debris. Map ----- +----------------------------------------------------+ | ?????????????????????????????? ??? #?????????? | | ??????????????????????????# ?"" "?? #?????????? | | ??????????????????????????# """ """ #?????????? | | ??????????????????????????# """ """ #?????????? | | ??????????????????????????# #?????????? | | ??????????????????????????# """ """ #?????????? | | ??????????????????????????# """ """ #?????????? | | ??????????????????????????# """ """ #?????????? | | ??????????????????????????# #?????????? | | ??????????????????????????# #?????????? | | ??????????????????????????# !#?????????? | | ??????????????????????????# ! #?????????? | | ??????????????????????###########+###########????? | | ??????????????????????# #????? | | ??????????????????????# #????? | | ??????????????????????# #????? | | ????????????????Y?????# "" "" #????? | | ??????????????????????# "" "" #????? | | ??????????????????????# """ """ #####+#####???? | | ??????????????????????# """ """ ## #???? | | ???????????????== "" # """ """ ## ! """ #???? | | ???????????????= S + ## !! """ #???? | | ????????????????????" # ## !! """ #???? | | ??????????????????????# ## #???? | | ??????????????????????# ## """ #???? | | ??????????????????????#u @ ####+#### ! """ #???? | | ?????????????########## # # """ #???? | | ???????? # "" # #???? | | ???????? + "" ##########???? | | ???????? k # """ #????????????? | | ???????? # """ #????????????? | | ????????? # """ #????????????? | | ????????? ############# # #????????????? | | ????????? ?????????????# # "" #????????????? | | ????????? ???????????????# # "" #????????????? | | ??????????????????????????# # """ #????????????? | | ??????????????????????????# # """ #????????????? | | ??????????????????????????# # """ #????????????? | | ??????????????????????????? # ??????????????? | | ??????????????????????????? # ???????????????? | | ??????????????????????????? # ???????????????? | | ??????????????????????????? # ??????????????? | | ??????????????????????????? # ???????????????? | | ??????????????????????????? #######??????????????? | | ??????????????????????????? ?????????????????????? | | ???????????????????????????T?????????????????????? | | ?????????????????????????????????????????????????? | | ?????????????????????????????????????????????????? | | ?????????????????????????????????????????????????? | | ?????????????????????????????????????????????????? | +----------------------------------------------------+ Best States ------------- Heat Dissipation 45 Energy Generation 14 Energy Capacity 250 Matter Stores 300 Matter Capacity 300 Sight Range 20 Robot Scan Range 10 Terrain Scan Density 10 ECM Strength 1 Additional Mass Support 6 Evasion (%) 51 Recoil Reduction 2 Offensive Hacking 20 Item Schematics ----------------- Carbon-fiber Leg | -8/Materials | Scanalyzed Grenade Launcher | -8/Materials | Scanalyzed Robot Schematics ------------------ None Fabricated ------------ Nothing Alien Tech Used ----------------- None Achievements -------------- None Challenges ------------ None Game ------ Seed SpreadSniperInverter Manual? 0 Play Time 00:36:49 Cumulative 38.6 hours Start 2021.07.26 @ 17:01:12 End 2021.07.27 @ 11:00:32 Sessions 9 Manual Loads 0 Difficulty Rogue Special Mode None Game No. 28 Rogue 28 Adventurer 0 Explorer 0 Win Type - Total 0 Types 0/0/0/0/0/0/0/0/0 Lore% 29 Gallery% 46 Achievement% 30 Wizard Run 0 Options --------- ASCII 0 Keyboard 1 Movement Vi Keybinds 0 Fullscreen 2 Font 18/Cog Map View 76x50 Tactical HUD 1 Map Filters NONE Filters NONE Steam 0 RUN: 9d6e7766-fd23-4274-a349-5c440794bfb8